bitfinex/quotes_SOLUSD_20240915
["timestamp","ask_amount","ask_price","bid_price","bid_amount"]
[1726442217879,0.2565443,131.42,131.38,39.02350891]
[1726442218305,0.2565443,131.42,131.39,25.29851633]
[1726442218488,0.2565443,131.42,131.4,39.02350891]
[1726442218690,0.2565443,131.42,131.41,1.52140074]
[1726442218889,0.2565443,131.42,131.4,39.02350891]
[1726442219909,0.2565443,131.42,131.41,25.29784229]
[1726442220404,0.2565443,131.42,131.41,40.60154229]
[1726442220614,0.2565443,131.42,131.41,39.080584]
[1726442222007,0.2565443,131.46,131.43,39.02350891]
[1726442222506,0.2565443,131.46,131.44,23.776884]
[1726442222716,0.2565443,131.46,131.45,62.80039291]
[1726442223784,0.2565443,131.5,131.45,82.80039291]
[1726442223990,0.2565443,131.5,131.48,39.02350891]
[1726442224512,0.2565443,131.5,131.49,23.776884]
[1726442224684,0.2565443,131.5,131.49,25.29485097]
[1726442225193,50.0,131.57,131.51,23.776884]
[1726442225393,0.3023839,131.56,131.51,62.80039291]
[1726442226007,0.3023839,131.56,131.53,23.776884]
[1726442226213,0.3023839,131.56,131.54,1.51752339]
[1726442226419,0.3023839,131.56,131.55,39.02350891]
[1726442226884,0.3023839,131.56,131.55,62.80039291]
[1726442228616,0.3428155,131.62,131.56,23.776884]
[1726442228793,0.3428155,131.62,131.59,23.776884]
[1726442229825,0.3428155,131.62,131.56,6.0752]
[1726442229826,0.3428155,131.62,131.61,23.776884]
[1726442231222,0.3428155,131.67,131.61,23.776884]
[1726442231414,0.3428155,131.67,131.64,39.02350891]
[1726442232087,0.3428155,131.67,131.65,23.776884]
[1726442232291,0.3428155,131.67,131.64,39.02350891]
[1726442234789,0.3428155,131.67,131.65,24.71187979]
[1726442234985,0.3428155,131.67,131.65,23.776884]
[1726442235199,0.3428155,131.67,131.66,39.02350891]
[1726442235400,0.3428155,131.67,131.66,23.776884]
[1726442235699,0.3428155,131.67,131.65,23.776884]
[1726442237614,0.3428155,131.67,131.66,39.02350891]
[1726442237826,0.3428155,131.67,131.66,62.80039291]
[1726442238314,0.3428155,131.67,131.65,43.776884]
[1726442238687,0.3428155,131.67,131.62,55.52170891]
[1726442239702,0.3428155,131.67,131.62,39.02350891]
[1726442240099,0.3428155,131.67,131.63,20.0]
[1726442240299,0.3428155,131.67,131.64,1.23528758]
[1726442240495,0.3428155,131.67,131.64,39.02350891]
[1726442240717,0.3428155,131.67,131.65,23.776884]
[1726442242239,0.3428155,131.67,131.66,82.80039291]
[1726442242399,0.3428155,131.72,131.68,62.80039291]
[1726442243019,50.3428155,131.72,131.67,20.0]
[1726442243196,50.3428155,131.72,131.66,39.02350891]
[1726442243525,50.3428155,131.72,131.6,55.505808]
[1726442243526,50.0,131.72,131.64,39.02350891]
[1726442243697,50.0,131.72,131.65,43.776884]
[1726442244209,50.0,131.74,131.65,43.776884]
[1726442244400,50.0,131.72,131.66,39.02350891]
[1726442245114,50.0,131.7,131.6,6.291]
[1726442245315,50.0,131.7,131.61,39.02350891]
[1726442245607,50.0,131.7,131.63,39.02350891]
[1726442246423,50.0,131.7,131.62,23.776884]
[1726442246592,50.0,131.68,131.58,55.20240891]
[1726442246795,50.0,131.68,131.6,39.02350891]
[1726442247015,6.1572,131.69,131.6,39.02350891]
[1726442247202,6.1572,131.69,131.62,39.02350891]
[1726442247408,56.1572,131.72,131.64,39.02350891]
[1726442248831,6.1572,131.72,131.66,39.02350891]
[1726442249013,50.0,131.74,131.67,23.776884]
[1726442249396,50.0,131.72,131.67,23.776884]
[1726442249811,50.0,131.74,131.67,23.776884]
[1726442250201,50.0,131.74,131.69,23.776884]
[1726442250701,50.0,131.72,131.66,23.776884]
[1726442250910,50.0,131.74,131.66,20.0]
[1726442251726,50.0,131.72,131.66,20.0]
[1726442252018,50.0,131.68,131.61,6.0833]
[1726442252218,50.0,131.7,131.61,6.0833]
[1726442252813,21.8323,131.75,131.6,39.02350891]
[1726442252814,50.0,131.68,131.6,39.02350891]
[1726442253119,50.0,131.66,131.58,61.80500891]
[1726442253300,50.0,131.66,131.58,22.7815]
[1726442253497,50.0,131.66,131.58,16.5681]
[1726442254120,50.0,131.66,131.58,55.59160891]
[1726442254405,56.3083,131.68,131.6,39.02350891]
[1726442254606,56.3083,131.68,131.61,21.51897762]
[1726442254817,56.3083,131.68,131.61,20.0]
[1726442255338,56.3083,131.68,131.62,23.776884]
[1726442255623,66.0068,131.7,131.62,62.80039291]
[1726442255818,50.0,131.7,131.64,23.776884]
[1726442256412,50.0,131.7,131.64,62.80039291]
[1726442256620,50.0,131.7,131.64,23.776884]
[1726442256936,50.0,131.68,131.62,23.776884]
[1726442257103,7.5936,131.69,131.61,20.0]
[1726442257305,50.0,131.68,131.61,20.0]
[1726442258807,50.0,131.68,131.62,23.776884]
[1726442259003,50.0,131.7,131.62,62.80039291]
[1726442259912,50.0,131.7,131.64,23.776884]
[1726442260110,56.3083,131.72,131.64,62.80039291]
[1726442260310,6.3083,131.72,131.66,62.80039291]
[1726442260515,66.0068,131.74,131.66,62.80039291]
[1726442260935,6.3083,131.75,131.68,39.02350891]
[1726442261233,50.0,131.74,131.67,20.0]
[1726442262805,57.5907,131.74,131.67,20.0]
[1726442263115,50.0,131.71,131.65,20.0]
[1726442263322,50.0,131.71,131.64,39.02350891]
[1726442263517,50.0,131.71,131.62,16.3187]
[1726442263518,50.0,131.69,131.62,16.3187]
[1726442263714,50.0,131.71,131.62,16.3187]
[1726442264529,50.0,131.71,131.62,55.34220891]
[1726442264824,50.0,131.71,131.63,20.0]
[1726442265439,50.0,131.71,131.64,23.776884]
[1726442267240,7.5931,131.7,131.63,20.0]
[1726442267411,50.0,131.69,131.6,39.02350891]
[1726442267617,57.5936,131.69,131.59,22.5321]
[1726442267944,50.0,131.69,131.6,39.02350891]
[1726442268721,50.0,131.69,131.61,43.776884]
[1726442269445,50.0,131.69,131.61,20.0]
[1726442270844,50.0,131.69,131.62,23.776884]
[1726442271520,50.0,131.71,131.62,23.776884]
[1726442271727,50.0,131.71,131.64,23.776884]
[1726442274541,57.5913,131.73,131.64,23.776884]
[1726442274843,15.1667,131.74,131.59,22.5321]
[1726442274844,7.593,131.7,131.6,20.0]
[1726442275053,50.0,131.68,131.6,20.0]
[1726442275542,50.0,131.7,131.62,20.0]
[1726442276143,50.0,131.7,131.63,23.776884]
[1726442278837,50.0,131.72,131.63,62.80039291]
[1726442279565,50.0,131.72,131.65,23.776884]
[1726442279764,50.0,131.72,131.66,20.0]
[1726442280643,50.0,131.72,131.67,23.776884]
[1726442280843,72.7576,131.74,131.67,23.776884]
[1726442281650,50.0,131.72,131.63,39.02350891]
[1726442281863,50.0,131.72,131.64,20.0]
[1726442282368,65.1667,131.74,131.64,20.0]
[1726442282661,50.0,131.71,131.64,20.0]
[1726442283659,50.0,131.73,131.64,20.0]
[1726442284161,50.0,131.71,131.66,20.0]
[1726442284468,50.0,131.69,131.6,20.0]
[1726442285065,50.0,131.69,131.59,61.55560891]
[1726442285360,57.5937,131.69,131.59,61.55560891]
[1726442285749,57.5937,131.69,131.6,23.776884]
[1726442286561,50.0,131.65,131.56,16.0313]
[1726442286770,50.0,131.67,131.57,39.02350891]
[1726442287062,50.0,131.67,131.58,1.51858723]
[1726442287262,50.0,131.67,131.59,39.02350891]
[1726442287944,50.0,131.67,131.6,20.0]
[1726442288336,50.0,131.67,131.62,20.0]
[1726442288558,6.2003,131.68,131.62,20.0]
[1726442288937,50.0,131.69,131.64,20.0]
[1726442289143,50.0,131.69,131.62,20.0]
[1726442289462,50.0,131.67,131.59,39.02350891]
[1726442289761,50.0,131.67,131.57,59.02350891]
[1726442289957,50.0,131.65,131.57,59.02350891]
[1726442290161,50.0,131.65,131.56,16.0313]
[1726442290541,57.596,131.65,131.56,16.0313]
[1726442290739,50.0,131.63,131.56,16.0313]
[1726442292044,50.0,131.63,131.57,20.0]
[1726442292767,65.5465,131.65,131.58,23.776884]
[1726442292949,56.6638,131.67,131.59,20.0]
[1726442293142,56.6638,131.67,131.61,20.0]
[1726442294762,50.0,131.65,131.58,20.0]
[1726442294966,56.6638,131.67,131.6,20.0]
[1726442297663,50.0,131.65,131.58,20.0]
[1726442298876,57.5959,131.65,131.58,20.0]
[1726442299078,50.0,131.6,131.52,21.5431]
[1726442300487,50.0,131.6,131.53,20.0]
[1726442300787,6.5991,131.61,131.55,39.02350891]
[1726442300988,50.0,131.62,131.56,20.0]
[1726442301286,57.5966,131.64,131.56,20.0]
[1726442301468,50.0,131.62,131.56,20.0]
[1726442301857,50.0,131.6,131.54,20.0]
[1726442302173,50.0,131.58,131.53,20.0]
[1726442302372,50.0,131.58,131.52,15.0467]
[1726442303274,50.0,131.58,131.5,0.5346734]
[1726442304292,50.0,131.58,131.51,20.0]
[1726442305218,50.0,131.61,131.53,20.0]
[1726442305364,50.0,131.61,131.55,20.0]
[1726442305564,50.0,131.61,131.54,23.776884]
[1726442305761,50.0,131.63,131.55,20.0]
[1726442306496,50.0,131.63,131.55,59.02350891]
[1726442306676,50.0,131.61,131.55,20.0]
[1726442306875,1.31069245,131.64,131.55,20.0]
[1726442306876,50.0,131.59,131.55,20.0]
[1726442307176,50.0,131.59,131.54,20.0]
[1726442307365,50.0,131.57,131.52,20.0]
[1726442307966,50.0,131.57,131.5,20.62649]
[1726442309573,56.0148,131.59,131.5,20.62649]
[1726442309774,56.0148,131.59,131.51,39.02350891]
[1726442309978,56.0148,131.59,131.52,20.0]
[1726442310394,56.0148,131.59,131.5,0.62649]
[1726442310395,50.0,131.56,131.5,0.62649]
[1726442310978,65.6484,131.58,131.5,0.62649]
[1726442311996,6.0148,131.59,131.52,23.776884]
[1726442312295,50.0,131.58,131.53,20.0]
[1726442312494,50.0,131.58,131.51,20.0]
[1726442312711,50.0,131.56,131.5,0.62649]
[1726442312992,6.0148,131.59,131.5,0.62649]
[1726442312993,50.0,131.54,131.5,0.62649]
[1726442313207,50.0,131.52,131.5,0.62649]
[1726442317098,57.6034,131.52,131.5,0.62649]
[1726442318079,7.6039,131.51,131.5,0.62649]
[1726442318393,57.6035,131.52,131.5,0.62649]
[1726442320887,31.380784,131.51,131.5,0.62649]
[1726442321277,50.0,131.47,131.45,0.320281]
[1726442322405,73.592184,131.46,131.45,0.320281]
[1726442322904,73.592184,131.46,131.34,15.8025]
[1726442322905,50.0,131.41,131.34,15.8025]
[1726442324005,50.0,131.41,131.35,20.320281]
[1726442325891,146.445084,131.41,131.35,0.320281]
[1726442326081,147.7574491,131.41,131.35,0.320281]
[1726442327091,50.0,131.36,131.35,0.320281]
[1726442328107,50.0,131.38,131.35,0.320281]
[1726442328297,50.0,131.38,131.3,0.320281]
[1726442328298,50.0,131.38,131.3,20.0]
[1726442328497,50.0,131.38,131.34,0.345374]
[1726442328903,50.0,131.35,131.34,0.345374]
[1726442331326,50.0,131.37,131.34,0.345374]
[1726442331912,67.2977491,131.41,131.34,0.345374]
[1726442331913,50.0,131.35,131.34,0.345374]
[1726442333712,73.776884,131.35,131.34,0.345374]
[1726442333922,50.0,131.35,131.34,0.345374]
[1726442338622,50.0,131.37,131.34,0.345374]
[1726442339006,50.0,131.39,131.34,0.345374]
[1726442340533,50.0,131.37,131.34,0.345374]
[1726442340738,50.0,131.35,131.34,0.345374]
[1726442341333,50.0,131.37,131.34,0.345374]
[1726442342113,50.0,131.35,131.34,0.345374]
[1726442342637,81.390084,131.35,131.34,0.345374]
[1726442342835,87.822284,131.35,131.34,0.345374]
[1726442343341,80.209084,131.35,131.34,0.345374]
[1726442343629,56.4322,131.35,131.34,0.345374]
[1726442343842,50.0,131.35,131.34,0.345374]
[1726442344534,73.776884,131.35,131.34,0.345374]
[1726442345036,50.0,131.35,131.34,0.345374]
[1726442345733,81.390084,131.35,131.34,0.345374]
[1726442345951,116.751184,131.35,131.34,0.345374]
[1726442346118,50.0,131.28,131.27,0.4373435]
[1726442347934,50.0,131.3,131.27,0.4373435]
[1726442348310,50.0,131.32,131.27,0.4373435]
[1726442349427,353.05,131.39,131.3,20.0]
[1726442349428,50.0,131.36,131.3,20.0]
[1726442350243,50.0,131.36,131.29,15.913]
[1726442350547,16.1279,131.38,131.32,20.0]
[1726442350548,50.0,131.38,131.32,20.0]
[1726442351011,50.0,131.36,131.29,54.93650891]
[1726442351211,50.0,131.36,131.3,20.0]
[1726442351431,50.0,131.34,131.3,20.0]
[1726442351940,50.0,131.36,131.3,20.0]
[1726442356444,1.31206297,131.43,131.3,20.0]
[1726442356445,50.0,131.34,131.3,20.0]
[1726442356936,50.0,131.34,131.29,15.913]
[1726442357115,50.0,131.32,131.27,0.4373435]
[1726442357818,50.0,131.34,131.27,0.4373435]
[1726442358722,50.0,131.32,131.27,0.4373435]
[1726442358922,50.0,131.3,131.27,0.4373435]
[1726442359445,50.0,131.3,131.27,20.4373435]
[1726442359636,50.0,131.3,131.27,0.4373435]
[1726442361046,50.0,131.34,131.27,20.4373435]
[1726442361850,50.0,131.32,131.27,20.4373435]
[1726442363040,50.0,131.34,131.27,59.46085241]
[1726442364244,7.56630758,131.38,131.27,59.46085241]
[1726442364245,50.0,131.32,131.27,0.4373435]
[1726442364442,50.0,131.32,131.27,20.4373435]
[1726442364924,30.41630758,131.38,131.27,20.4373435]
[1726442364925,50.0,131.3,131.27,20.4373435]
[1726442365126,50.0,131.3,131.27,0.4373435]
[1726442365948,50.0,131.32,131.27,0.4373435]
[1726442366147,50.0,131.3,131.27,0.4373435]
[1726442367531,50.0,131.28,131.27,0.4373435]
[1726442368755,50.0,131.3,131.27,0.4373435]
[1726442369129,50.0,131.32,131.27,0.4373435]
[1726442369743,50.0,131.3,131.27,0.4373435]
[1726442370851,50.0,131.32,131.27,0.4373435]
[1726442371951,50.0,131.3,131.27,0.4373435]
[1726442373061,50.0,131.28,131.27,0.4373435]
[1726442375366,50.0,131.29,131.27,0.4373435]
[1726442376968,50.0,131.31,131.27,0.4373435]
[1726442377148,50.0,131.33,131.27,0.4373435]
[1726442377481,50.0,131.31,131.27,0.4373435]
[1726442377644,50.0,131.29,131.27,0.4373435]
[1726442377838,50.0,131.31,131.27,0.4373435]
[1726442378243,50.0,131.33,131.27,0.4373435]
[1726442378481,50.0,131.33,131.28,39.02350891]
[1726442378941,50.0,131.33,131.29,20.0]
[1726442379141,50.0,131.37,131.31,20.0]
[1726442381761,50.0,131.39,131.33,20.0]
[1726442381965,50.0,131.41,131.35,20.0]
[1726442382579,50.0,131.41,131.35,35.2819]
[1726442384050,50.0,131.41,131.36,39.02350891]
[1726442384474,50.0,131.41,131.37,20.0]
[1726442386073,50.0,131.43,131.37,20.0]
[1726442386258,50.0,131.41,131.37,20.0]
[1726442386954,50.0,131.43,131.37,20.0]
[1726442387162,50.0,131.43,131.38,39.02350891]
[1726442387854,50.0,131.45,131.38,39.02350891]
[1726442388075,50.0,131.45,131.39,20.0]
[1726442388568,50.0,131.45,131.41,15.1448]
[1726442389075,8.38859596,131.51,131.42,20.0]
[1726442389076,50.0,131.46,131.42,20.0]
[1726442390286,50.0,131.44,131.42,20.0]
[1726442391262,50.404404,131.47,131.42,20.0]
[1726442392153,0.404404,131.47,131.42,20.0]
[1726442392358,0.404404,131.47,131.42,59.02350891]
[1726442392763,50.404404,131.47,131.42,59.02350891]
[1726442394185,50.0,131.52,131.47,40.5934]
[1726442394392,2.6851185,131.72,131.64,2.548]
[1726442394702,0.4437761,131.87,131.64,2.548]
[1726442394703,16.48930445,131.96,131.85,36.5452]
[1726442394855,16.48930445,131.96,131.95,17.5786]
[1726442394856,4.62505665,131.96,131.95,17.5786]
[1726442395056,4.62505665,131.96,131.95,136.5262842]
[1726442395260,0.4796441,132.02,131.97,10.0]
[1726442395483,0.5188265,132.18,132.05,20.0]
[1726442395484,50.0,132.17,132.05,20.0]
[1726442395702,50.0,132.17,132.06,10.0]
[1726442395703,50.0,132.15,132.06,10.0]
[1726442395984,50.0,132.15,131.99,1.51418156]
[1726442395985,4.41762574,132.14,132.09,10.0]
[1726442396155,4.41762574,132.14,132.06,10.0]
[1726442396351,4.41762574,132.14,131.96,10.0]
[1726442396352,50.0,132.13,132.08,10.0]
[1726442396577,50.0,132.15,132.08,10.0]
[1726442396795,50.0,132.15,132.09,14.3526176]
[1726442397089,50.0,132.13,132.1,45.881544]
[1726442397255,50.0,132.13,132.11,21.5289264]
[1726442397455,50.0,132.13,132.12,35.881544]
[1726442397765,50.0,132.14,132.12,40.91894386]
[1726442398073,50.0,132.14,132.1,10.0]
[1726442398074,50.0,132.12,132.07,10.0]
[1726442398462,50.0,132.14,132.09,10.0]
[1726442398673,0.5188265,132.18,132.03,10.0]
[1726442398674,50.0,132.1,132.03,10.0]
[1726442399168,50.0,132.1,132.05,10.0]
[1726442399377,0.5188265,132.18,131.91,0.5188265]
[1726442399378,50.0,132.06,132.0,10.0]
[1726442399555,50.0,132.04,131.98,10.0]
[1726442399753,50.0,132.04,131.91,0.5188265]
[1726442399754,24.69288922,132.03,132.0,10.0]
[1726442399958,24.69288922,132.03,131.98,10.0]
[1726442399959,59.49726508,132.02,131.98,10.0]
[1726442400174,50.0,131.99,131.95,10.0]
[1726442400374,34.16670951,131.98,131.97,10.0]
[1726442400676,78.49179525,131.98,131.95,10.0]
[1726442400879,20.0,131.99,131.95,10.0]
[1726442401079,50.0,132.02,131.98,10.0]
[1726442401256,20.0,132.04,132.0,10.0]
[1726442401461,50.0,132.05,132.0,10.0]
[1726442401655,50.0,132.05,131.91,10.5188265]
[1726442401656,65.2774,132.09,132.03,10.0]
[1726442401879,65.2774,132.09,132.01,10.0]
[1726442401880,50.0,132.07,132.01,10.0]
[1726442402082,65.2774,132.09,132.03,10.0]
[1726442402283,50.0,132.09,132.05,10.0]
[1726442402669,50.0,132.09,132.03,10.0]
[1726442403094,50.0,132.09,132.05,10.0]
[1726442403284,50.0,132.13,132.07,10.0]
[1726442403607,50.0,132.09,132.03,10.0]
[1726442403991,50.0,132.09,132.03,17.5738]
[1726442404397,50.0,132.09,132.03,10.0]
[1726442404601,50.0,132.06,131.99,10.0]
[1726442404992,50.0,132.04,131.97,18.9427]
[1726442405313,50.0,132.0,131.93,7.5792]
[1726442405507,50.0,132.0,131.93,7.5794]
[1726442405814,20.0,132.01,131.92,18.9501]
[1726442405998,50.0,132.0,131.92,18.9501]
[1726442406186,70.0,132.01,131.92,18.9501]
[1726442406392,70.0,132.01,131.93,7.5795]
[1726442406797,70.0,132.01,131.92,18.9501]
[1726442406798,20.0,132.01,131.92,18.9501]
[1726442407092,50.0,132.01,131.94,7.5789]
[1726442407492,50.0,132.01,131.92,26.53]
[1726442407688,57.5778,131.97,131.91,0.5188265]
[1726442407893,50.0,131.97,131.91,0.5188265]
[1726442408107,20.0,131.98,131.91,0.5188265]
[1726442408412,50.0,131.99,131.92,7.58]
[1726442408586,50.0,131.99,131.91,19.4704265]
[1726442409391,50.0,131.94,131.91,0.5188265]
[1726442409607,50.0,131.94,131.86,26.5418]
[1726442410104,50.0,131.92,131.86,18.9583]
[1726442410501,20.0,131.93,131.86,18.9583]
[1726442410911,20.0,131.93,131.88,7.5824]
[1726442411101,50.0,131.94,131.88,7.5824]
[1726442411294,50.0,131.94,131.89,7.5818]
[1726442411492,50.0,131.98,131.87,1.51562181]
[1726442411695,50.0,131.96,131.89,7.5817]
[1726442411896,50.0,131.99,131.9,20.46799838]
[1726442412091,50.0,131.99,131.9,26.5344]
[1726442412394,6.32,132.03,131.9,26.5344]
[1726442412395,50.0,131.96,131.9,26.5344]
[1726442412597,50.0,131.98,131.9,26.5344]
[1726442412988,50.0,131.94,131.86,43.776884]
[1726442413188,50.0,131.96,131.9,7.5813]
[1726442413415,50.0,131.96,131.86,23.776884]
[1726442414028,50.0,131.96,131.89,7.5818]
[1726442414392,50.0,131.96,131.9,7.5812]
[1726442414793,50.0,131.98,131.91,23.776884]
[1726442415312,50.0,132.0,131.94,7.5788]
[1726442416522,13.8941,132.03,131.93,18.9488]
[1726442416523,50.0,132.03,131.96,23.776884]
[1726442417017,50.0,132.01,131.93,18.9488]
[1726442417221,330.2,132.04,131.97,7.5772]
[1726442417399,50.0,132.03,131.94,23.776884]
[1726442417712,50.0,132.03,131.97,18.9436]
[1726442418430,50.0,132.03,131.93,23.776884]
[1726442419542,50.0,132.01,131.93,23.776884]
[1726442420010,72.85,132.01,131.94,7.5789]
[1726442420832,80.4254,132.01,131.92,18.9495]
[1726442421002,72.85,132.01,131.94,7.5787]
[1726442421206,50.0,132.05,131.95,1.51571697]
[1726442421407,50.0,132.07,132.01,7.5751]
[1726442421607,50.0,132.07,131.98,18.9412]
[1726442421833,380.2,132.09,132.02,7.5744]
[1726442422009,380.2,132.09,132.01,18.937]
[1726442422214,72.85,132.07,132.01,18.937]
[1726442422434,80.4219,132.07,132.01,18.937]
[1726442422629,72.85,132.07,132.01,18.937]
[1726442422938,50.0,132.09,132.02,23.776884]
[1726442423116,72.85,132.09,132.02,7.5745]
[1726442423932,50.0,132.09,132.02,23.776884]
[1726442424134,0.5188265,132.1,132.02,25.28992315]
[1726442424336,0.5188265,132.1,132.07,7.5717]
[1726442424914,0.5188265,132.1,132.05,31.349284]
[1726442425333,0.5188265,132.1,132.05,23.776884]
[1726442425639,0.5188265,132.1,132.05,31.349584]
[1726442425941,80.4207,132.09,132.01,20.0]
[1726442426107,80.4207,132.09,132.02,23.776884]
[1726442426311,0.5188265,132.1,132.02,23.776884]
[1726442426511,20.5188265,132.1,132.0,18.9386]
[1726442426712,50.0,132.09,132.0,18.9386]
[1726442427449,72.85,132.09,132.01,23.776884]
[1726442427738,0.5188265,132.1,132.04,23.776884]
[1726442427943,0.5188265,132.1,132.09,7.5705]
[1726442428153,0.5188265,132.1,132.07,18.9291]
[1726442429056,0.5188265,132.1,132.04,23.776884]
[1726442429223,80.4206,132.09,132.03,26.5081]
[1726442429720,72.85,132.09,132.03,18.9342]
[1726442429923,50.0,132.07,132.01,7.5746]
[1726442430127,72.85,132.09,132.03,7.5738]
[1726442430342,8.0888265,132.1,132.02,18.9362]
[1726442430343,0.5188265,132.1,132.02,18.9362]
[1726442430529,20.5188265,132.1,132.04,7.5729]
[1726442430726,43.3688265,132.1,132.05,18.9317]
[1726442430921,50.0,132.09,132.05,18.9317]
[1726442431121,43.3688265,132.1,132.05,18.9317]
[1726442431549,50.9390265,132.1,132.05,18.9317]
[1726442431923,50.9390265,132.1,132.05,26.5045]
[1726442431924,43.3688265,132.1,132.05,26.5045]
[1726442432129,43.3688265,132.1,132.05,18.9317]
[1726442432330,72.85,132.09,132.03,7.5734]
[1726442432650,7.5729,132.05,131.99,7.576]
[1726442432857,22.85,132.08,132.03,7.5739]
[1726442433063,30.4211,132.08,132.01,7.5746]
[1726442433564,80.4217,132.07,132.01,7.5746]
[1726442433747,80.4217,132.07,132.0,18.9387]
[1726442433748,7.5712,132.08,132.02,7.5741]
[1726442433944,30.4212,132.08,132.02,7.5741]
[1726442434152,80.4218,132.07,132.0,26.5144]
[1726442434361,22.85,132.06,131.98,7.5763]
[1726442434578,57.5735,132.04,131.98,7.5763]
[1726442435038,57.5735,132.04,131.99,7.5763]
[1726442435239,72.85,132.04,131.99,7.5763]
[1726442435461,7.5729,132.05,131.99,7.5763]
[1726442435659,72.85,132.04,131.99,7.5763]
[1726442435858,22.85,132.04,131.99,7.5763]
[1726442436069,57.5723,132.06,132.0,7.5756]
[1726442436577,80.4223,132.06,132.0,7.5756]
[1726442436766,7.5729,132.05,131.99,7.5763]
[1726442437156,27.5712,132.08,132.03,7.574]
[1726442437349,50.0,132.04,131.98,7.5764]
[1726442437551,57.5751,132.02,131.97,18.9426]
[1726442437765,22.85,132.03,131.97,26.5198]
[1726442437766,7.574,132.03,131.97,26.5198]
[1726442437944,50.0,132.02,131.97,18.9426]
[1726442438267,50.0,132.04,131.98,7.5768]
[1726442438768,50.0,132.02,131.97,26.52]
[1726442438943,22.85,132.02,131.98,7.5768]
[1726442439262,57.5734,132.04,131.99,7.5761]
[1726442439651,80.4234,132.04,131.99,7.5761]
[1726442440055,7.5723,132.06,131.99,23.776884]
[1726442440257,57.5718,132.07,132.01,26.5118]
[1726442440462,349.1248,132.11,132.01,18.9369]
[1726442440463,7.5712,132.08,132.01,18.9369]
[1726442440763,22.85,132.06,132.01,18.9369]
[1726442441071,50.0,132.07,132.02,7.5743]
[1726442441270,7.5716,132.08,132.02,7.5743]
[1726442441571,50.0,132.09,131.99,23.776884]
[1726442441572,50.0,132.09,131.99,37.8809]
[1726442441771,7.5717,132.07,132.01,26.5122]
[1726442442152,7.5717,132.07,132.02,7.5744]
[1726442442369,50.0,132.09,132.02,7.5744]
[1726442442370,57.571,132.09,132.02,23.776884]
[1726442442552,50.0,132.09,132.03,18.9339]
[1726442442751,50.0,132.09,132.04,7.5729]
[1726442443257,330.7188265,132.1,132.06,7.5721]
[1726442443460,0.5188265,132.1,132.06,23.776884]
[1726442444163,0.5188265,132.1,132.06,31.348784]
[1726442444486,57.5705,132.09,132.02,18.9361]
[1726442444785,50.0,132.09,132.04,7.5734]
[1726442445257,0.5188265,132.1,132.02,18.9361]
[1726442445258,0.5188265,132.1,132.05,7.5728]
[1726442445459,8.0890265,132.1,132.05,7.5728]
[1726442445666,0.5188265,132.1,132.05,7.5728]
[1726442446052,0.5188265,132.1,132.05,23.776884]
[1726442446282,0.5188265,132.1,132.07,18.9292]
[1726442447571,0.5188265,132.1,132.09,7.5705]
[1726442447986,0.5188265,132.1,132.07,18.9292]